bitfinex/quotes_ETHUSD_20260119
["timestamp","ask_amount","ask_price","bid_price","bid_amount"]
[1768790977062,12.04227252,3211.0,3210.1,13.3036448]
[1768790977358,15.15656964,3211.0,3210.3,12.7906448]
[1768790977557,12.04227252,3210.9,3210.3,12.7906448]
[1768790978449,12.04227252,3210.9,3210.1,0.513]
[1768790978450,12.04227252,3210.9,3210.1,12.95478475]
[1768790978764,12.04227252,3210.9,3210.1,13.46778475]
[1768790978964,12.04227252,3210.9,3209.9,12.95478475]
[1768790978965,12.68674906,3210.7,3209.9,12.95478475]
[1768790979563,12.68674906,3210.7,3209.8,3.11543104]
[1768790979564,12.68674906,3210.7,3210.2,0.002]
[1768790980980,15.80137917,3210.7,3210.2,0.002]
[1768790982669,6.22926022,3210.7,3210.2,0.002]
[1768790982842,12.68674906,3210.6,3210.2,0.002]
[1768790983160,14.26688698,3210.5,3210.2,0.002]
[1768790984470,17.38166915,3210.5,3210.2,0.002]
[1768790984859,14.26688698,3210.5,3210.2,0.002]
[1768790985750,14.26688698,3210.5,3209.1,12.95678475]
[1768790985751,13.19974906,3210.4,3209.1,12.95678475]
[1768790986060,12.68674906,3210.2,3209.1,0.002]
[1768790987163,12.68674906,3210.0,3209.1,0.002]
[1768790987332,9.34550325,3210.1,3209.1,0.002]
[1768790987333,12.68674906,3209.8,3209.1,0.002]
[1768790987969,12.68674906,3209.8,3208.6,0.002]
[1768790988206,12.68674906,3209.6,3208.6,0.002]
[1768790988375,12.68674906,3209.4,3208.6,0.002]
[1768790989297,12.68674906,3209.2,3208.6,0.002]
[1768790990790,12.68674906,3209.2,3208.7,12.95478475]
[1768790990959,0.513,3209.5,3208.6,0.002]
[1768790990960,12.68674906,3209.4,3208.6,0.002]
[1768790991158,15.80262808,3209.4,3208.6,12.95678475]
[1768790991470,12.68674906,3209.2,3208.6,12.95678475]
[1768790991656,12.68674906,3209.2,3208.7,12.95478475]
[1768790992202,12.68674906,3209.2,3209.1,0.002]
[1768790992491,1.63156281,3209.3,3209.1,0.002]
[1768790992690,15.80260802,3209.4,3209.1,0.002]
[1768790992886,12.68674906,3209.4,3209.1,0.002]
[1768790994058,3.62875348,3209.5,3209.1,0.002]
[1768790994463,12.3513238,3209.4,3207.2,0.002]
[1768790994787,0.16,3206.9,3206.5,0.002]
[1768790998764,0.08216023,3206.9,3206.5,12.77408195]
[1768791000172,12.8653238,3206.8,3205.2,3.11985142]
[1768791000502,12.3513238,3206.6,3205.5,12.77208195]
[1768791000716,12.3513238,3206.6,3205.2,0.513]
[1768791000717,3.20043644,3206.9,3205.9,12.77208195]
[1768791000883,3.20043644,3206.9,3206.1,12.77208195]
[1768791000884,3.11827621,3206.9,3206.1,12.77208195]
[1768791001079,3.11827621,3206.9,3206.1,15.89113026]
[1768791001283,12.3513238,3206.9,3206.1,12.60993183]
[1768791001506,14.2614969,3206.9,3205.9,0.513]
[1768791001898,14.2614969,3206.9,3205.9,13.28508195]
[1768791002095,12.3513238,3206.7,3205.7,12.77208195]
[1768791002587,12.3513238,3206.7,3205.7,15.89150021]
[1768791002999,12.3513238,3206.7,3205.7,19.0109437]
[1768791003199,14.08931084,3206.7,3205.7,15.89150021]
[1768791004225,14.08931084,3206.7,3205.8,12.77208195]
[1768791004432,12.3513238,3207.0,3205.8,12.77208195]
[1768791004618,12.3513238,3208.0,3205.8,12.77208195]
[1768791004926,12.3513238,3207.6,3205.8,12.77208195]
[1768791005110,12.8653238,3207.5,3205.8,12.77208195]
[1768791005313,13.63785618,3207.4,3206.0,12.77208195]
[1768791005509,13.63785618,3207.4,3206.2,12.77208195]
[1768791006025,3.11788731,3207.3,3206.4,12.77208195]
[1768791006427,6.23577462,3207.3,3206.4,12.77208195]
[1768791006624,12.3513238,3207.2,3206.1,3.63198451]
[1768791006920,14.21003364,3207.1,3206.2,12.77208195]
[1768791007122,14.21003364,3207.1,3206.2,15.8910168]
[1768791007623,3.11788731,3207.3,3206.3,12.77208195]
[1768791007937,12.8653238,3207.6,3206.5,12.77208195]
[1768791008220,12.3513238,3207.6,3206.7,12.77208195]
[1768791008605,15.46893751,3207.6,3206.7,12.77208195]
[1768791008803,6.31,3207.9,3206.7,12.77208195]
[1768791008804,12.3513238,3207.8,3206.7,12.77208195]
[1768791009006,6.31,3207.9,3206.9,12.77208195]
[1768791009206,24.89594604,3207.9,3206.9,12.77208195]
[1768791009424,12.3513238,3207.8,3206.9,12.77208195]
[1768791009634,12.3513238,3207.8,3206.6,13.28508195]
[1768791010131,12.3513238,3207.6,3206.7,0.513]
[1768791010294,12.3513238,3207.4,3206.4,3.11869741]
[1768791010499,12.3513238,3207.4,3206.5,0.513]
[1768791011313,14.20995588,3207.5,3206.6,15.89059451]
[1768791011522,12.3513238,3207.5,3206.6,15.89059451]
[1768791011718,0.514,3207.6,3206.6,15.89059451]
[1768791012029,3.1176929,3207.5,3206.6,15.89059451]
[1768791012418,12.3513238,3207.4,3205.1,3.1200128]
[1768791012615,12.3513238,3207.4,3206.4,15.89078711]
[1768791012925,14.20999476,3207.3,3206.5,13.28508195]
[1768791014029,14.20999476,3207.3,3206.6,3.11853549]
[1768791014234,14.20999476,3207.3,3206.6,12.77208195]
[1768791014525,17.32789407,3207.3,3206.6,12.77208195]
[1768791014926,12.3513238,3207.2,3206.5,0.513]
[1768791015434,12.3513238,3207.2,3206.5,13.28508195]
[1768791015627,13.73660228,3207.2,3206.5,13.28508195]
[1768791015929,0.001,3207.0,3206.5,13.28508195]
[1768791016236,12.3513238,3207.7,3206.7,12.77208195]
[1768791016401,15.46886162,3207.7,3206.7,12.77208195]
[1768791016597,12.3513238,3208.2,3206.7,12.77208195]
[1768791016933,12.3513238,3208.0,3206.9,12.77208195]
[1768791017132,12.3513238,3208.0,3207.1,12.77208195]
[1768791018440,15.46862795,3207.9,3207.1,12.77208195]
[1768791018608,3.11724117,3208.0,3207.1,15.8901314]
[1768791018932,15.46856497,3208.0,3207.1,15.8901314]
[1768791019134,0.34435448,3207.9,3207.1,12.77208195]
[1768791019433,12.69567828,3207.9,3207.1,15.8901616]
[1768791019635,12.69567828,3207.9,3207.1,12.77208195]
[1768791020636,15.46872513,3207.8,3207.1,12.77208195]
[1768791021136,12.3513238,3207.7,3207.0,0.513]
[1768791021304,14.2443684,3207.7,3207.0,0.513]
[1768791021505,14.2443684,3207.7,3207.0,3.63116839]
[1768791022036,14.2443684,3207.7,3207.0,13.28508195]
[1768791022541,1.8930446,3207.7,3207.0,13.28508195]
[1768791022736,16.25984234,3207.9,3207.0,13.28508195]
[1768791023533,16.25984234,3207.9,3207.1,3.11804854]
[1768791023836,1.74913238,3208.1,3207.2,12.32681182]
[1768791024227,4.86626465,3208.1,3207.2,12.32681182]
[1768791025235,1.74913238,3208.1,3207.4,12.27681182]
[1768791025639,17.66441363,3208.1,3207.4,12.27681182]
[1768791025842,14.87631215,3208.0,3207.2,12.32681182]
[1768791026050,14.87631215,3208.0,3207.2,12.83981182]
[1768791026343,14.87631215,3208.0,3206.8,12.32681182]
[1768791026548,14.87631215,3208.0,3206.7,3.11840478]
[1768791026743,14.87631215,3208.0,3206.5,15.44545261]
[1768791026744,14.87631215,3208.0,3206.5,15.44543747]
[1768791026947,12.79816385,3207.8,3206.5,15.44543747]
[1768791027132,12.79816385,3207.6,3206.7,12.32681182]
[1768791027314,15.91582786,3207.6,3206.7,3.11839907]
[1768791027642,15.91582786,3207.6,3206.8,12.32681182]
[1768791028944,0.515,3207.8,3206.8,12.83981182]
[1768791029119,12.79816385,3207.7,3206.8,0.513]
[1768791029316,15.91575956,3207.6,3206.8,15.95815417]
[1768791030026,12.79816385,3207.6,3206.8,15.95815417]
[1768791030225,12.79816385,3207.6,3206.9,12.32681182]
[1768791031016,3.11752802,3207.7,3206.9,12.32681182]
[1768791031269,0.001,3207.8,3207.0,12.32681182]
[1768791033941,0.001,3207.8,3207.1,15.44489357]
[1768791034139,12.79916385,3207.8,3206.8,12.83981182]
[1768791034450,12.79916385,3207.8,3206.8,12.32681182]
[1768791034745,12.79916385,3207.8,3206.6,0.513]
[1768791034951,12.79816385,3207.6,3206.5,3.11862619]
[1768791035153,12.79816385,3207.4,3206.5,3.11862619]
[1768791035848,15.91602591,3207.4,3206.5,3.11862619]
[1768791036049,12.79816385,3207.4,3206.5,15.44543801]
[1768791036349,12.79816385,3207.4,3206.6,12.32681182]
[1768791036545,12.79816385,3207.3,3206.6,12.32681182]
[1768791037625,12.79816385,3207.3,3206.4,3.11872306]
[1768791038524,12.79816385,3207.3,3206.4,15.4888706]
[1768791038750,12.79816385,3207.3,3206.4,6.23748553]
[1768791039054,12.79816385,3207.3,3206.5,12.37014754]
[1768791039823,12.79816385,3207.3,3206.9,0.002]
[1768791040024,1.75590062,3207.2,3206.9,0.002]
[1768791040355,14.20801257,3207.2,3206.9,0.002]
[1768791040533,17.32600865,3207.2,3206.9,0.002]
[1768791041055,14.20801257,3207.2,3206.5,12.37214754]
[1768791041553,17.32601059,3207.2,3206.5,12.37214754]
[1768791041748,1.73260106,3207.1,3206.5,12.37214754]
[1768791043252,1.73260106,3207.1,3206.6,12.37014754]
[1768791043459,16.08406674,3207.3,3206.6,12.37014754]
[1768791043632,12.45211195,3207.2,3206.6,12.37014754]
[1768791046539,15.57011674,3207.2,3206.6,12.37014754]
[1768791046882,15.57011674,3207.2,3206.5,3.12060413]
[1768791046883,12.45211195,3207.2,3206.5,0.002]
[1768791047035,13.74872315,3207.2,3206.5,0.002]
[1768791047240,12.45211195,3207.1,3206.5,0.002]
[1768791048940,12.45211195,3207.0,3206.5,0.002]
[1768791049139,12.45211195,3207.0,3206.1,3.63203316]
[1768791049367,12.45211195,3207.0,3206.1,0.513]
[1768791049563,6.23624156,3207.1,3206.1,0.513]
[1768791049564,12.45211195,3206.8,3206.1,0.513]
[1768791050570,12.45211195,3206.8,3206.0,12.37014754]
[1768791051073,12.45211195,3206.7,3206.0,15.48928933]
[1768791051373,12.45211195,3206.7,3206.0,12.37014754]
[1768791051549,12.45211195,3206.7,3206.1,12.37014754]
[1768791052268,14.2474375,3206.7,3205.9,12.88314754]
[1768791052432,14.2474375,3206.7,3205.9,0.513]
[1768791052762,14.2474375,3206.7,3205.7,12.37014754]
[1768791052962,14.2474375,3206.7,3205.7,12.36814754]
[1768791053162,16.10639937,3206.5,3205.7,12.36814754]
[1768791053369,12.98773416,3206.5,3205.8,12.74612067]
[1768791055271,12.98773416,3206.5,3205.8,15.86540838]
[1768791055440,16.10641812,3206.5,3205.8,15.86540838]
[1768791055650,16.10641812,3206.5,3205.8,12.74612067]
[1768791055856,14.80321958,3206.4,3205.8,12.74612067]
[1768791056256,14.80321958,3206.4,3205.6,13.25912067]
[1768791056460,14.80321958,3206.4,3205.7,12.74612067]
[1768791057477,12.98773416,3206.4,3205.9,12.74612067]
[1768791057675,3.11808175,3207.1,3205.8,12.74612067]
[1768791057867,0.514,3207.0,3205.8,12.74612067]
[1768791058068,0.514,3206.9,3205.8,12.74612067]
[1768791058269,0.514,3206.9,3206.0,12.74612067]
[1768791058781,0.514,3206.8,3206.1,12.74612067]
[1768791059302,0.001,3207.8,3206.5,12.74612067]
[1768791059590,0.001,3207.8,3206.7,12.74612067]
[1768791059591,0.515,3207.8,3206.7,12.74612067]
[1768791059764,0.515,3207.8,3206.9,12.74612067]
[1768791061784,0.515,3207.8,3207.0,6.23635796]
[1768791061981,0.515,3207.8,3207.1,12.74612067]
[1768791064494,0.515,3207.8,3207.3,12.74612067]
[1768791064712,0.001,3207.5,3207.3,12.74612067]
[1768791064873,0.001,3207.5,3207.4,14.33253119]
[1768791066498,0.515,3207.8,3207.4,14.33253119]
[1768791066703,0.515,3207.8,3207.4,17.45030068]
[1768791067969,12.98773416,3207.7,3206.9,15.86433346]
[1768791068174,12.98773416,3207.7,3206.8,0.80539158]
[1768791068473,3.63241419,3207.8,3206.9,15.86439488]
[1768791068669,12.98773416,3207.7,3206.9,15.86439488]
[1768791069768,12.98773416,3207.7,3206.8,12.74612067]
[1768791070903,12.98773416,3207.5,3206.8,15.86444573]
[1768791071988,3.11753678,3207.7,3206.8,15.86444573]
[1768791072193,3.11753678,3207.7,3206.9,12.74612067]
[1768791073390,3.63244275,3207.8,3206.9,12.74612067]
[1768791073591,6.7498855,3207.8,3206.9,12.74612067]
[1768791074595,3.63244275,3207.8,3206.9,15.86439654]
[1768791075682,6.7245355,3209.1,3206.9,15.86439654]
[1768791075683,22.41451599,3208.5,3207.0,12.74612067]
[1768791075896,22.41451599,3208.5,3206.9,6.23655208]
[1768791075897,6.8646367,3208.4,3207.2,12.74612067]
[1768791076212,0.514,3208.3,3207.2,12.74812067]
[1768791077616,3.11701265,3208.2,3207.3,3.11788731]
[1768791077821,3.11701265,3208.2,3207.4,12.74612067]
[1768791078020,6.2340253,3208.2,3207.4,12.74612067]
[1768791078408,3.11701265,3208.2,3207.4,12.74612067]
[1768791079419,3.11701265,3208.2,3207.4,14.33272806]
[1768791080027,6.2340253,3208.2,3207.4,14.33272806]
[1768791080526,3.11701265,3208.2,3207.4,14.33272806]
[1768791081923,3.63095118,3208.3,3207.5,12.74612067]
[1768791082709,6.74790236,3208.3,3207.5,12.74612067]
[1768791082939,7.4857926,3208.3,3207.5,12.74612067]
[1768791085035,12.72576915,3208.2,3207.2,12.2262876]
[1768791086204,12.72576915,3208.0,3207.2,12.2262876]
[1768791086402,3.11710981,3208.1,3207.2,12.2262876]
[1768791086403,0.514,3207.9,3207.2,12.2262876]
[1768791086818,13.91459111,3207.9,3207.2,12.2262876]
[1768791087937,13.91459111,3207.9,3207.2,0.002]
[1768791088301,13.91459111,3207.9,3207.2,12.2262876]
[1768791088302,18.96057181,3207.8,3207.2,12.2262876]
[1768791089137,12.72576915,3207.7,3207.2,2.54038103]
[1768791089437,12.72576915,3207.7,3206.5,3.09370087]
[1768791089648,1.89605718,3207.6,3206.6,12.2242876]
[1768791089850,0.514,3207.5,3206.6,12.2242876]
[1768791090048,0.514,3207.5,3207.1,0.002]
[1768791090421,3.11779011,3207.4,3207.1,12.2262876]
[1768791090748,3.11779011,3207.4,3207.1,0.002]
[1768791090943,13.40071829,3207.3,3207.1,0.002]
[1768791091654,13.40071829,3207.3,3206.7,12.2182876]
[1768791092152,0.67494914,3207.3,3206.7,12.2182876]
[1768791093145,0.67494914,3207.3,3206.8,12.2242876]
[1768791093146,3.79287854,3207.3,3206.8,12.2242876]
[1768791096248,0.67494914,3207.3,3206.8,12.2242876]
[1768791096452,16.51864416,3207.3,3206.7,12.2242876]
[1768791096828,0.67494914,3207.3,3206.8,12.2242876]
[1768791097026,16.35748385,3207.5,3206.8,12.2242876]
[1768791098249,19.47519855,3207.5,3206.8,12.2242876]
[1768791098646,16.35748385,3207.5,3206.8,12.2242876]
[1768791098862,12.72576915,3207.5,3206.8,12.2242876]
[1768791099065,0.514,3207.4,3206.9,12.00036054]
[1768791099767,0.514,3207.3,3207.1,12.00036054]
[1768791099967,0.001,3208.0,3207.2,12.00036054]
[1768791100147,0.514,3207.9,3207.2,12.00036054]
[1768791101954,0.001,3207.6,3207.2,3.11795018]
[1768791102286,0.001,3208.0,3207.4,12.00036054]
[1768791102448,0.514,3207.9,3207.4,12.00036054]
[1768791104555,0.514,3207.9,3207.4,3.11778822]
[1768791104742,0.514,3207.8,3207.5,12.00036054]
[1768791105065,0.001,3208.0,3207.7,12.00036054]
[1768791105269,0.514,3207.9,3207.7,12.00036054]
[1768791106467,3.11629631,3209.0,3207.7,12.00036054]
[1768791106468,12.06043915,3208.7,3207.8,12.00036054]
[1768791106667,1.72004392,3208.6,3207.8,12.00036054]
[1768791106966,4.83674181,3208.6,3207.8,12.00036054]
[1768791107687,16.89718096,3208.6,3207.8,12.00036054]
[1768791109355,12.06043915,3208.5,3207.8,11.90659359]
[1768791109600,12.06043915,3208.5,3207.0,12.00036054]
[1768791109783,12.06043915,3208.3,3207.0,12.00036054]
[1768791109991,12.06043915,3208.1,3207.1,12.00036054]
[1768791110567,12.06043915,3208.1,3207.2,12.00036054]
[1768791110767,12.06043915,3208.1,3206.1,3.11899876]
[1768791110768,12.06043915,3208.1,3207.3,15.11822761]
[1768791110973,12.57443915,3208.0,3207.2,12.00036054]
[1768791111177,15.69168159,3208.0,3207.2,12.00036054]
[1768791111661,12.57443915,3208.0,3207.3,12.00036054]
[1768791111873,15.69165116,3208.0,3207.3,12.00036054]
[1768791112057,15.17765116,3208.0,3207.3,12.00036054]
[1768791112389,0.514,3207.9,3207.3,12.00036054]
[1768791113087,0.514,3207.9,3207.3,13.5121933]
[1768791113387,0.001,3207.7,3207.4,12.37480131]
[1768791113594,0.514,3207.6,3207.4,12.37480131]
[1768791115284,0.44078452,3207.6,3207.5,12.37480131]
[1768791116166,0.40470893,3207.6,3207.5,12.37480131]
[1768791116566,12.24710551,3207.5,3206.6,12.37480131]
[1768791117266,12.24710551,3207.3,3206.6,12.37480131]
[1768791117468,0.514,3207.2,3206.6,12.37480131]
[1768791117784,12.76110551,3207.2,3206.6,12.37480131]
[1768791120644,12.76110551,3207.2,3205.9,0.002]
[1768791120645,13.83500761,3207.1,3205.9,0.002]
[1768791120917,12.24710551,3206.6,3205.9,12.37680131]
[1768791121073,0.514,3206.5,3206.1,12.37480131]
[1768791122408,3.63267913,3206.5,3206.1,12.37480131]
[1768791123503,0.514,3206.5,3206.1,12.37480131]
[1768791123706,3.63267113,3206.5,3206.1,12.37480131]
[1768791123876,3.63267041,3206.5,3206.1,12.37480131]
[1768791125014,0.514,3206.5,3206.1,12.37480131]
[1768791125581,0.514,3206.5,3206.4,0.002]
[1768791126100,12.24710551,3207.5,3206.4,12.37680131]
[1768791126287,12.76110551,3207.4,3206.6,12.37480131]
[1768791128620,3.11788731,3207.3,3206.6,12.37480131]
[1768791129683,0.514,3207.4,3206.6,12.37480131]
[1768791129884,0.514,3207.4,3206.8,12.37480131]
[1768791131127,0.514,3207.4,3206.9,12.37480131]
[1768791132816,0.514,3207.4,3207.1,12.37480131]
[1768791133126,0.514,3207.4,3207.0,3.11817898]
[1768791133127,3.1174784,3207.8,3207.2,12.37480131]
[1768791133426,1.58527583,3211.1,3207.2,12.37480131]
[1768791133427,0.514,3208.3,3207.2,12.37480131]
[1768791133600,0.514,3208.2,3207.4,12.37480131]
[1768791134815,2e-08,3208.2,3207.6,12.37480131]
[1768791135401,12.24710551,3208.7,3207.6,12.37480131]
[1768791135601,7.28804911,3210.8,3207.8,12.37480131]
[1768791135602,0.514,3208.6,3207.8,12.37480131]
[1768791136033,0.514,3208.8,3207.8,12.88780131]
[1768791136904,0.514,3208.8,3208.0,12.37480131]
[1768791138202,0.514,3209.2,3208.0,12.37480131]
[1768791138426,15.87695323,3209.4,3208.0,12.37480131]
[1768791138630,12.24710551,3210.2,3208.2,12.37480131]
[1768791138795,12.24710551,3210.0,3208.4,12.37480131]
[1768791138993,12.24710551,3210.0,3208.3,0.513]
[1768791138994,15.36246735,3209.9,3208.6,12.37480131]
[1768791139232,15.36246735,3209.9,3208.8,12.37480131]
[1768791139428,1.84777846,3209.8,3208.8,12.37480131]
[1768791141299,12.24710551,3209.6,3208.9,12.37480131]
[1768791143830,3.11575011,3209.5,3208.9,12.37480131]
[1768791144224,14.82335555,3209.5,3208.9,12.37480131]
[1768791144627,14.82319631,3209.7,3208.9,12.37480131]
[1768791145012,14.82319631,3209.7,3209.0,12.82304919]
[1768791145246,16.61705441,3209.7,3209.0,12.82304919]
[1768791145612,1.7938581,3209.7,3209.0,12.82304919]
[1768791145843,14.82302863,3209.9,3209.0,15.9392653]
[1768791146754,17.93845147,3209.9,3209.0,12.82304919]
[1768791147302,11.70760544,3209.8,3209.0,12.82304919]
[1768791148230,3.11555597,3209.7,3209.0,12.82304919]
[1768791148912,11.70760544,3209.8,3209.0,12.82304919]
[1768791149120,11.70760544,3209.8,3209.2,12.82304919]
[1768791149333,0.001,3209.6,3209.2,12.82304919]
[1768791150209,0.001,3209.6,3209.2,15.9390494]
[1768791150607,0.001,3209.6,3209.2,12.82304919]
[1768791152947,11.70760544,3209.4,3208.2,12.82304919]
[1768791154959,11.70760544,3209.2,3208.2,12.82304919]
[1768791155116,11.70760544,3209.0,3208.2,12.82304919]
[1768791156352,11.70760544,3209.0,3207.9,3.63029498]
[1768791156353,11.70760544,3209.0,3207.9,12.82304919]
[1768791156946,11.70760544,3209.0,3207.9,15.9403225]
[1768791157153,11.70760544,3208.8,3207.9,15.9403225]
[1768791158154,11.70760544,3208.8,3207.9,12.82304919]
[1768791159674,14.82412288,3208.8,3207.9,15.94034256]
[1768791159962,12.44624875,3208.7,3207.9,12.82304919]
[1768791160132,12.44624875,3208.7,3207.9,15.94034843]
[1768791160322,14.43637589,3208.7,3207.9,15.94034843]
[1768791160961,14.43637589,3208.7,3207.9,15.94032991]
[1768791161761,16.78476885,3208.9,3208.2,11.96431066]
[1768791161963,16.78481074,3208.9,3208.3,11.96231066]
[1768791162458,12.44624875,3208.8,3208.3,11.96231066]
[1768791164133,1.22216054,3208.9,3208.3,15.07921875]
[1768791164332,12.96024875,3209.1,3208.4,11.96231066]
[1768791164962,3.11575441,3209.5,3208.6,11.96231066]
[1768791165168,12.44624875,3209.5,3208.6,11.96231066]
[1768791166348,12.44624875,3209.5,3208.8,11.96231066]
[1768791166937,0.001,3209.6,3208.8,13.78185669]
[1768791167246,0.001,3209.6,3209.0,11.96231066]
[1768791168558,0.001,3209.6,3209.1,11.96231066]
[1768791169174,12.44724875,3209.6,3209.1,11.96231066]
[1768791169351,12.44724875,3209.6,3209.0,0.513]
[1768791170969,15.56291131,3209.6,3209.0,12.47531066]
[1768791171154,12.44624875,3209.5,3209.0,12.47531066]
[1768791173274,12.44624875,3209.5,3209.0,0.513]
[1768791174577,0.001,3209.2,3209.0,0.513]
[1768791176175,12.52843624,3209.2,3209.0,0.513]
[1768791176547,0.001,3209.2,3209.0,0.513]
[1768791177144,0.001,3209.2,3209.0,12.76781085]
[1768791178859,0.001,3209.2,3209.0,0.513]
[1768791180694,13.78127986,3209.2,3208.1,12.25481085]
[1768791180850,12.52843624,3209.2,3208.1,12.25481085]
[1768791181053,12.52843624,3209.2,3207.9,12.25681085]
[1768791181355,12.52743624,3208.6,3207.9,0.002]
[1768791181562,12.52743624,3208.6,3206.8,5.82857429]
[1768791181563,12.52743624,3208.4,3207.4,12.25481085]
[1768791181751,12.52743624,3208.4,3207.1,3.11801456]
[1768791181752,12.52743624,3208.3,3207.1,3.11801456]
[1768791181976,12.52743624,3208.1,3207.0,0.513]
[1768791182186,12.52743624,3208.1,3207.1,12.25481085]
[1768791184001,12.52743624,3207.9,3207.1,12.25481085]
[1768791184178,12.52743624,3207.9,3207.2,12.25481085]
[1768791186170,15.64477369,3207.9,3207.4,0.002]
[1768791186680,12.52743624,3207.9,3207.4,0.002]
[1768791187404,15.64474659,3207.9,3207.4,0.002]
[1768791187792,12.52743624,3207.9,3207.4,0.002]
[1768791189406,12.52743624,3207.9,3207.4,12.25681085]
[1768791191111,14.87703729,3208.2,3207.5,12.25481085]
[1768791191272,13.04143624,3208.2,3207.5,12.25481085]
[1768791191900,12.52743624,3208.1,3207.5,12.25481085]
[1768791192785,15.64457477,3208.1,3207.0,0.002]
[1768791192979,12.52743624,3207.9,3207.0,0.002]
[1768791193194,1.87616321,3208.0,3207.0,0.002]
[1768791193195,12.52743624,3207.7,3207.0,0.002]
[1768791194375,12.52743624,3207.5,3207.0,0.002]
[1768791198113,3.11761704,3207.6,3207.3,0.002]
[1768791198778,15.64505328,3207.6,3207.3,0.002]
[1768791198983,17.27724213,3207.6,3207.3,0.002]
[1768791199510,12.52743624,3207.5,3207.3,0.002]
[1768791199810,14.15962509,3207.6,3207.3,0.002]
[1768791200810,12.52743624,3207.5,3207.3,0.002]
[1768791202315,12.52743624,3207.5,3207.0,0.002]
[1768791202522,12.52743624,3207.3,3207.0,0.002]
[1768791202686,14.90797248,3207.2,3207.0,0.002]
[1768791202887,11.78998795,3207.2,3207.0,0.002]
[1768791204797,14.90798828,3207.2,3207.0,0.002]
[1768791204996,3.11790069,3207.3,3207.0,0.002]
[1768791205429,3.11790069,3207.3,3206.6,0.002]
[1768791205430,11.78998795,3207.2,3206.6,0.002]
[1768791206520,11.78998795,3207.2,3206.6,11.86486447]
[1768791206887,11.78998795,3207.1,3206.6,11.86486447]
[1768791208326,11.78998795,3207.5,3206.7,11.86286447]
[1768791208526,12.30398795,3207.5,3206.7,11.86286447]
[1768791209036,12.30398795,3207.5,3206.9,11.86286447]
[1768791209405,0.514,3207.5,3206.9,11.86286447]
[1768791209828,11.78998795,3207.7,3206.9,11.86486447]
[1768791210034,3.11764947,3207.6,3206.9,11.86486447]
[1768791210239,11.78998795,3207.6,3206.9,11.86486447]
[1768791210608,13.33213721,3207.6,3206.9,11.86486447]
[1768791211339,13.33213721,3207.6,3206.9,14.98311848]
[1768791211510,13.33213721,3207.6,3207.0,11.86286447]
[1768791212323,16.44977819,3207.6,3207.0,11.86286447]
[1768791212523,13.33213721,3207.6,3207.0,11.86286447]
[1768791212946,16.44979227,3207.6,3207.0,11.86286447]
[1768791213466,3.11752319,3207.7,3207.0,11.86286447]
[1768791213650,14.90751114,3207.7,3207.0,11.86286447]
[1768791213946,11.78998795,3207.6,3207.0,11.86286447]
[1768791214538,11.78998795,3208.4,3207.3,11.86286447]
[1768791214758,11.78998795,3208.2,3207.3,11.86286447]
[1768791215752,11.78998795,3208.0,3207.3,11.86286447]
[1768791216320,11.78998795,3208.0,3207.4,11.86286447]
[1768791218148,11.78998795,3208.0,3207.5,11.86286447]
[1768791218344,11.70846126,3208.5,3207.6,12.49087135]
[1768791218660,12.22246126,3208.4,3207.6,13.98893466]
[1768791219528,12.22246126,3208.4,3207.8,12.49087135]
[1768791219864,0.514,3208.4,3207.9,12.49087135]
[1768791220454,11.70846126,3208.5,3207.9,12.49087135]
[1768791220666,11.70846126,3208.7,3207.9,13.42500495]
[1768791221744,11.70846126,3208.7,3208.1,12.49087135]
[1768791222160,0.001,3208.4,3208.1,12.49087135]
[1768791224869,0.001,3208.4,3208.1,15.60796435]
[1768791228777,11.70846126,3208.9,3208.4,12.49087135]
[1768791230877,11.70846126,3208.8,3208.4,12.49087135]
[1768791231373,11.70846126,3208.8,3208.2,12.49087135]
[1768791232360,11.70846126,3208.8,3208.1,3.1170869]
[1768791232561,11.70846126,3208.8,3208.1,14.85678521]
[1768791232761,11.70846126,3208.8,3208.2,11.73969831]
[1768791233291,11.70846126,3208.8,3208.2,14.85669925]
[1768791233594,0.001,3208.5,3208.2,14.85669925]
[1768791234074,0.001,3208.5,3208.2,11.73969831]
[1768791235282,0.001,3208.5,3208.2,14.85669649]
[1768791236194,0.001,3208.5,3208.2,11.73969831]
[1768791237598,0.001,3208.5,3208.3,11.73969831]
[1768791237802,12.32694883,3209.0,3208.3,11.73969831]
[1768791238101,11.81294883,3209.0,3208.3,11.73969831]
[1768791238394,11.81294883,3209.0,3208.2,7.73206469]
[1768791238395,11.81394883,3209.2,3208.5,11.73969831]
[1768791238601,11.81394883,3209.2,3208.5,12.67383191]
[1768791241070,11.81394883,3209.2,3208.6,14.85632238]
[1768791241274,11.81394883,3209.2,3208.6,11.73969831]
[1768791241473,11.81294883,3209.0,3208.0,14.85684083]
[1768791241692,11.81294883,3209.0,3208.1,0.513]
[1768791242221,11.81294883,3208.8,3208.0,11.73969831]
[1768791242420,11.81294883,3208.8,3208.0,15.36989272]
[1768791242591,13.04564371,3208.8,3208.0,15.36989272]
[1768791242971,4.34912775,3208.8,3208.0,15.36989272]
[1768791243208,0.514,3208.9,3208.0,15.36989272]
[1768791243209,11.81294883,3208.7,3208.0,15.36989272]
[1768791245105,11.81294883,3208.7,3208.3,0.002]
[1768791245481,0.001,3208.5,3208.3,0.002]
[1768791247504,11.81394883,3208.5,3208.3,0.002]
[1768791248706,0.001,3208.5,3208.3,0.002]
[1768791248898,11.81294883,3208.8,3208.3,0.002]
[1768791249103,11.81294883,3208.8,3208.3,11.74169831]
[1768791249773,11.81294883,3208.8,3208.3,14.85857805]
[1768791250004,11.81294883,3208.8,3208.3,11.74169831]
[1768791250219,11.81294883,3208.7,3208.3,0.002]
[1768791250419,13.04564371,3208.7,3208.3,0.002]
[1768791251706,11.81294883,3208.6,3208.3,0.002]
[1768791253223,11.81294883,3208.6,3208.0,0.002]
[1768791253877,11.81294883,3208.4,3208.0,0.002]
[1768791255290,11.81294883,3208.4,3208.0,11.74169831]
[1768791256888,14.92978722,3208.4,3208.0,0.002]
[1768791257188,11.81294883,3208.3,3207.5,12.25269831]
[1768791257953,11.81294883,3208.3,3206.9,0.002]
[1768791258117,11.81294883,3207.8,3206.9,0.002]
[1768791258319,11.81294883,3207.6,3206.9,0.002]
[1768791259035,11.81294883,3207.4,3206.9,0.002]
[1768791261079,11.81294883,3207.2,3206.0,0.002]
[1768791261370,11.81294883,3206.9,3205.8,11.74169831]
[1768791261717,11.81294883,3206.7,3205.8,0.002]
[1768791261912,5.8310441,3206.8,3205.8,0.002]
[1768791261913,11.81294883,3206.5,3205.8,0.002]